fUSD/lending_fUSD_20260621
["ID","MTS","AMOUNT","RATE_DAILY","PERIOD"]
[425909035,1782033099000,-2819.93,0.00030136,2]
[425909042,1782033099000,-651.67,0.00030136,2]
[425909044,1782033099000,-2000.0,0.00030136,4]
[425909046,1782033099000,-2000.0,0.00030136,4]
[425909048,1782033099000,-2000.0,0.00030136,4]
[425909047,1782033099000,-2000.0,0.00030136,4]
[425909052,1782033099000,-2000.0,0.00030136,4]
[425909054,1782033099000,-2000.0,0.00030136,4]
[425909053,1782033099000,-2000.0,0.00030136,4]
[425909049,1782033099000,-2000.0,0.00030136,4]
[425909036,1782033099000,-500.0,0.00030136,2]
[425909045,1782033099000,-2000.0,0.00030136,4]
[425909051,1782033099000,-2000.0,0.00030136,4]
[425909055,1782033099000,-2000.0,0.00030136,4]
[425909061,1782033099000,-500.0,0.00030136,2]
[425909057,1782033099000,-249.85468033,0.00030136,2]
[425909063,1782033099000,-500.0,0.00030136,2]
[425909060,1782033099000,-550.42,0.00030136,2]
[425909062,1782033099000,-500.0,0.00030136,2]
[425909058,1782033099000,-712.88,0.00030136,2]
[425909064,1782033099000,-1002.37,0.00030136,2]
[425909056,1782033099000,-500.0,0.00030136,2]
[425909050,1782033099000,-629.92,0.00030136,2]
[425909034,1782033099000,-500.0,0.00030136,2]
[425909017,1782033099000,-500.0,0.00030136,2]
[425909041,1782033099000,-500.0,0.00030136,2]
[425909032,1782033099000,-500.0,0.00030136,2]
[425909012,1782033099000,-500.0,0.00030136,2]
[425909015,1782033099000,-500.0,0.00030136,2]
[425909016,1782033099000,-500.0,0.00030136,2]
[425909020,1782033099000,-853.34,0.00030136,2]
[425909019,1782033099000,-1000.0,0.00030136,2]
[425909022,1782033099000,-500.0,0.00030136,2]
[425909031,1782033099000,-500.0,0.00030136,2]
[425909023,1782033099000,-1758.48,0.00030136,2]
[425909027,1782033099000,-650.62,0.00030136,2]
[425909025,1782033099000,-3977.44,0.00030136,2]
[425909059,1782033099000,-904.85,0.00030136,2]
[425909024,1782033099000,-531.84,0.00030136,2]
[425909026,1782033099000,-500.0,0.00030136,2]
[425909028,1782033099000,-500.0,0.00030136,2]
[425909029,1782033099000,-500.0,0.00030136,2]
[425909039,1782033099000,-500.0,0.00030136,2]
[425909037,1782033099000,-539.64,0.00030136,2]
[425909040,1782033099000,-500.0,0.00030136,2]
[425909033,1782033099000,-500.0,0.00030136,2]
[425909043,1782033099000,-500.0,0.00030136,2]
[425909038,1782033099000,-500.0,0.00030136,2]
[425909030,1782033099000,-500.0,0.00030136,2]
[425909099,1782033100000,-334.0,0.00030137,120]
[425909102,1782033100000,-221.0,0.00030137,120]
[425909103,1782033100000,-164.0,0.00030137,120]
[425909104,1782033100000,-799.0,0.00030137,120]
[425909098,1782033100000,-200.0,0.00030137,120]
[425909094,1782033100000,-166.0,0.00030137,120]
[425909095,1782033100000,-150.0,0.00030137,120]
[425909090,1782033100000,-2297.0,0.00030137,120]
[425909091,1782033100000,-187.23452303,0.00030137,30]
[425909100,1782033100000,-972.0,0.00030137,120]
[425909096,1782033100000,-295.0,0.00030137,120]
[425909108,1782033100000,-273.0,0.00030137,120]
[425909117,1782033100000,-500.0,0.00030137,30]
[425909106,1782033100000,-199.0,0.00030137,120]
[425909107,1782033100000,-170.0,0.00030137,120]
[425909105,1782033100000,-200.0,0.00030137,120]
[425909110,1782033100000,-685.0,0.00030137,120]
[425909111,1782033100000,-285.0,0.00030137,120]
[425909116,1782033100000,-2110.0,0.00030137,2]
[425909121,1782033100000,-500.0,0.00030137,30]
[425909114,1782033100000,-501.82455083,0.00030137,2]
[425909115,1782033100000,-169.75665872,0.00030137,120]
[425909112,1782033100000,-242.0,0.00030137,30]
[425909097,1782033100000,-249.0,0.00030137,120]
[425909109,1782033100000,-410.0,0.00030137,120]
[425909093,1782033100000,-200.0,0.00030137,120]
[425909076,1782033100000,-827.33,0.00030136,2]
[425909087,1782033100000,-621.0,0.00030137,120]
[425909066,1782033100000,-500.0,0.00030136,2]
[425909065,1782033100000,-331.93027865,0.00030136,2]
[425909067,1782033100000,-1479.66,0.00030136,2]
[425909073,1782033100000,-500.0,0.00030136,2]
[425909070,1782033100000,-791.72,0.00030136,2]
[425909068,1782033100000,-2754.08,0.00030136,2]
[425909069,1782033100000,-500.0,0.00030136,2]
[425909071,1782033100000,-500.0,0.00030136,2]
[425909072,1782033100000,-438.56900604,0.00030136,2]
[425909075,1782033100000,-2177.43,0.00030136,2]
[425909085,1782033100000,-691.0,0.00030137,90]
[425909092,1782033100000,-767.0,0.00030137,120]
[425909074,1782033100000,-500.0,0.00030136,2]
[425909081,1782033100000,-506.67,0.00030136,2]
[425909118,1782033100000,-500.0,0.00030137,30]
[425909084,1782033100000,-691.0,0.00030137,90]
[425909080,1782033100000,-159.56,0.00030136,7]
[425909083,1782033100000,-630.0,0.00030137,30]
[425909079,1782033100000,-2292.48,0.00030136,2]
[425909078,1782033100000,-1181.09,0.00030136,2]
[425909082,1782033100000,-630.0,0.00030137,30]
[425909086,1782033100000,-621.0,0.00030137,120]
[425909089,1782033100000,-621.0,0.00030137,120]
[425909088,1782033100000,-621.0,0.00030137,120]
[425909077,1782033100000,-160.4,0.00030136,7]
[425909119,1782033100000,-500.0,0.00030137,30]
[425909101,1782033100000,-250.0,0.00030137,120]
[425909120,1782033100000,-500.0,0.00030137,30]
[425909147,1782033100000,-396.24,0.00030298,2]
[425909150,1782033100000,-185.12,0.00030298,2]
[425909155,1782033100000,-260.11463423,0.0003036,2]
[425909151,1782033100000,-573.64,0.00030298,2]
[425909149,1782033100000,-573.64,0.00030298,2]
[425909152,1782033100000,-152.9,0.00030299,2]
[425909153,1782033100000,-573.64,0.00030307,2]
[425909157,1782033100000,-251.0,0.0003036,2]
[425909154,1782033100000,-573.64,0.00030317,2]
[425909156,1782033100000,-251.0,0.0003036,2]
[425909161,1782033100000,-500.0,0.0003041,2]
[425909162,1782033100000,-500.0,0.0003041,2]
[425909164,1782033100000,-544.78870946,0.0003041,2]
[425909169,1782033100000,-793.21,0.0003041,2]
[425909163,1782033100000,-534.17,0.0003041,2]
[425909170,1782033100000,-500.0,0.0003041,2]
[425909171,1782033100000,-500.0,0.0003041,2]
[425909165,1782033100000,-500.0,0.0003041,2]
[425909167,1782033100000,-634.94,0.0003041,2]
[425909166,1782033100000,-1203.65,0.0003041,2]
[425909168,1782033100000,-500.0,0.0003041,2]
[425909173,1782033100000,-452.71318536,0.0003041,2]
[425909174,1782033100000,-780.63,0.0003041,2]
[425909172,1782033100000,-500.0,0.0003041,2]
[425909113,1782033100000,-252.0,0.00030137,120]
[425909159,1782033100000,-11044.99,0.00030375,2]
[425909158,1782033100000,-251.0,0.0003036,2]
[425909160,1782033100000,-982.13,0.000304,7]
[425909144,1782033100000,-482.29,0.00030298,2]
[425909123,1782033100000,-500.0,0.00030137,30]
[425909148,1782033100000,-647.66,0.00030298,2]
[425909133,1782033100000,-2500.0,0.0003025,2]
[425909126,1782033100000,-500.0,0.00030137,30]
[425909134,1782033100000,-22500.0,0.0003025,2]
[425909129,1782033100000,-250.0,0.00030195,7]
[425909124,1782033100000,-500.0,0.00030137,30]
[425909122,1782033100000,-500.0,0.00030137,30]
[425909127,1782033100000,-500.0,0.00030137,30]
[425909128,1782033100000,-178.37258696,0.00030137,30]
[425909131,1782033100000,-151.0,0.00030239,2]
[425909130,1782033100000,-746.72,0.00030205,2]
[425909132,1782033100000,-25000.0,0.0003025,2]
[425909125,1782033100000,-500.0,0.00030137,30]
[425909136,1782033100000,-5134.55,0.0003025,2]
[425909141,1782033100000,-256.0,0.00030273,120]
[425909139,1782033100000,-162.0,0.00030273,120]
[425909138,1782033100000,-274.0,0.00030273,120]
[425909142,1782033100000,-150.0,0.00030273,120]
[425909143,1782033100000,-8970.0099393,0.00030289,2]
[425909145,1782033100000,-573.64,0.00030298,2]
[425909146,1782033100000,-573.64,0.00030298,2]
[425909137,1782033100000,-24999.99,0.0003025,2]
[425909135,1782033100000,-25000.0,0.0003025,2]
[425909140,1782033100000,-237.0,0.00030273,120]
[425909206,1782033101000,-975.96,0.0003041,2]
[425909221,1782033101000,-500.0,0.0003041,2]
[425909216,1782033101000,-500.0,0.0003041,2]
[425909217,1782033101000,-924.09,0.0003041,2]
[425909212,1782033101000,-1347.78,0.0003041,2]
[425909215,1782033101000,-1703.68,0.0003041,2]
[425909213,1782033101000,-500.0,0.0003041,2]
[425909214,1782033101000,-1076.52,0.0003041,2]
[425909210,1782033101000,-500.0,0.0003041,2]
[425909202,1782033101000,-528.51,0.0003041,2]
[425909204,1782033101000,-500.0,0.0003041,2]
[425909220,1782033101000,-1290.56,0.0003041,2]
[425909211,1782033101000,-500.0,0.0003041,2]
[425909219,1782033101000,-500.0,0.0003041,2]
[425909225,1782033101000,-500.0,0.0003041,2]
[425909224,1782033101000,-232.57685266,0.0003041,2]
[425909223,1782033101000,-1165.13,0.0003041,2]
[425909235,1782033101000,-504.3,0.0003041,2]
[425909234,1782033101000,-761.39,0.0003041,2]
[425909227,1782033101000,-500.0,0.0003041,2]
[425909226,1782033101000,-898.43,0.0003041,2]
[425909230,1782033101000,-769.83,0.0003041,2]
[425909232,1782033101000,-500.0,0.0003041,2]
[425909228,1782033101000,-500.0,0.0003041,2]
[425909231,1782033101000,-547.24,0.0003041,2]
[425909229,1782033101000,-716.64,0.0003041,2]
[425909200,1782033101000,-500.0,0.0003041,2]
[425909233,1782033101000,-500.0,0.0003041,2]
[425909222,1782033101000,-500.0,0.0003041,2]
[425909205,1782033101000,-500.0,0.0003041,2]
[425909180,1782033101000,-500.0,0.0003041,2]
[425909207,1782033101000,-500.0,0.0003041,2]
[425909236,1782033101000,-500.0,0.0003041,2]
[425909183,1782033101000,-534.74323602,0.0003041,2]
[425909178,1782033101000,-500.0,0.0003041,2]
[425909179,1782033101000,-500.0,0.0003041,2]
[425909175,1782033101000,-578.39,0.0003041,2]
[425909181,1782033101000,-500.0,0.0003041,2]
[425909177,1782033101000,-271.4874169,0.0003041,2]
[425909176,1782033101000,-500.0,0.0003041,2]
[425909182,1782033101000,-762.48,0.0003041,2]
[425909186,1782033101000,-500.0,0.0003041,2]
[425909193,1782033101000,-819.65,0.0003041,2]
[425909195,1782033101000,-1000.0,0.0003041,7]
[425909192,1782033101000,-500.0,0.0003041,2]
[425909201,1782033101000,-500.0,0.0003041,2]
[425909196,1782033101000,-500.0,0.0003041,2]
[425909191,1782033101000,-500.0,0.0003041,2]
[425909184,1782033101000,-500.0,0.0003041,2]
[425909185,1782033101000,-580.07,0.0003041,2]
[425909194,1782033101000,-645.65,0.0003041,2]
[425909187,1782033101000,-560.05309614,0.0003041,2]
[425909189,1782033101000,-635.9,0.0003041,2]
[425909188,1782033101000,-1264.4,0.0003041,2]
[425909198,1782033101000,-500.0,0.0003041,2]
[425909197,1782033101000,-549.03855289,0.0003041,2]
[425909209,1782033101000,-577.92,0.0003041,2]
[425909208,1782033101000,-840.08,0.0003041,2]
[425909199,1782033101000,-500.0,0.0003041,2]
[425909203,1782033101000,-500.0,0.0003041,2]
[425909190,1782033101000,-500.0,0.0003041,2]
[425909238,1782033101000,-500.0,0.0003041,2]
[425909218,1782033101000,-500.0,0.0003041,2]
[425909239,1782033101000,-500.0,0.0003041,2]
[425909269,1782033101000,-500.0,0.0003041,2]
[425909272,1782033101000,-500.0,0.0003041,2]
[425909275,1782033101000,-603.17,0.0003041,2]
[425909286,1782033101000,-500.0,0.0003041,2]
[425909285,1782033101000,-568.75,0.0003041,2]
[425909274,1782033101000,-500.0,0.0003041,2]
[425909280,1782033101000,-784.62,0.0003041,2]
[425909276,1782033101000,-500.0,0.0003041,2]
[425909279,1782033101000,-500.0,0.0003041,2]
[425909281,1782033101000,-664.29,0.0003041,2]
[425909284,1782033101000,-500.0,0.0003041,2]
[425909277,1782033101000,-500.0,0.0003041,2]
[425909278,1782033101000,-629.68,0.0003041,2]
[425909283,1782033101000,-737.18,0.0003041,2]
[425909282,1782033101000,-500.0,0.0003041,2]
[425909289,1782033101000,-1737.27,0.0003041,2]
[425909288,1782033101000,-500.0,0.0003041,2]
[425909298,1782033101000,-713.9,0.0003041,2]
[425909287,1782033101000,-1018.86,0.0003041,2]
[425909291,1782033101000,-500.0,0.0003041,2]
[425909295,1782033101000,-661.95,0.0003041,2]
[425909292,1782033101000,-875.57,0.0003041,2]
[425909296,1782033101000,-500.0,0.0003041,2]
[425909294,1782033101000,-921.6,0.0003041,2]
[425909297,1782033101000,-500.0,0.0003041,2]
[425909290,1782033101000,-500.0,0.0003041,2]
[425909293,1782033101000,-779.95,0.0003041,2]
[425909300,1782033101000,-355.37999048,0.0003041,2]
[425909237,1782033101000,-693.99,0.0003041,2]
[425909273,1782033101000,-1066.62,0.0003041,2]
[425909270,1782033101000,-500.0,0.0003041,2]
[425909299,1782033101000,-161.00287,0.0003041,2]
[425909268,1782033101000,-500.0,0.0003041,2]
[425909264,1782033101000,-500.0,0.0003041,2]
[425909245,1782033101000,-592.61,0.0003041,2]
[425909241,1782033101000,-546.86,0.0003041,2]
[425909247,1782033101000,-530.82,0.0003041,2]
[425909243,1782033101000,-500.0,0.0003041,2]
[425909248,1782033101000,-500.0,0.0003041,2]
[425909244,1782033101000,-591.97,0.0003041,2]
[425909246,1782033101000,-500.0,0.0003041,2]
[425909242,1782033101000,-500.0,0.0003041,2]
[425909249,1782033101000,-500.0,0.0003041,2]
[425909258,1782033101000,-550.74,0.0003041,2]
[425909259,1782033101000,-150.0,0.0003041,120]
[425909260,1782033101000,-533.88,0.0003041,2]
[425909250,1782033101000,-500.0,0.0003041,2]
[425909240,1782033101000,-500.0,0.0003041,2]
[425909255,1782033101000,-500.0,0.0003041,2]
[425909266,1782033101000,-500.0,0.0003041,2]
[425909263,1782033101000,-921.72,0.0003041,2]
[425909267,1782033101000,-500.0,0.0003041,2]
[425909271,1782033101000,-582.99,0.0003041,2]
[425909261,1782033101000,-562.16,0.0003041,2]
[425909301,1782033101000,-746.04,0.0003041,2]
[425909262,1782033101000,-509.25,0.0003041,2]
[425909256,1782033101000,-516.55,0.0003041,2]
[425909254,1782033101000,-658.23,0.0003041,2]
[425909252,1782033101000,-595.36,0.0003041,2]
[425909251,1782033101000,-500.0,0.0003041,2]
[425909253,1782033101000,-500.0,0.0003041,2]
[425909257,1782033101000,-612.83,0.0003041,2]
[425909265,1782033101000,-500.0,0.0003041,2]
[425909343,1782033102000,-500.0,0.0003041,2]
[425909349,1782033102000,-500.0,0.0003041,2]
[425909348,1782033102000,-500.0,0.0003041,2]
[425909338,1782033102000,-1574.14,0.0003041,2]
[425909342,1782033102000,-500.0,0.0003041,2]
[425909330,1782033102000,-500.0,0.0003041,2]
[425909339,1782033102000,-500.0,0.0003041,2]
[425909341,1782033102000,-539.05,0.0003041,2]
[425909337,1782033102000,-500.0,0.0003041,2]
[425909334,1782033102000,-556.35,0.0003041,2]
[425909332,1782033102000,-662.0,0.0003041,2]
[425909340,1782033102000,-782.46,0.0003041,2]
[425909344,1782033102000,-500.0,0.0003041,2]
[425909356,1782033102000,-274.45908441,0.0003041,2]
[425909345,1782033102000,-500.0,0.0003041,2]
[425909346,1782033102000,-1113.05,0.0003041,2]
[425909351,1782033102000,-500.0,0.0003041,2]
[425909352,1782033102000,-500.0,0.0003041,2]
[425909353,1782033102000,-572.27,0.0003041,2]
[425909360,1782033102000,-500.0,0.0003041,2]
[425909350,1782033102000,-500.0,0.0003041,2]
[425909354,1782033102000,-500.0,0.0003041,2]
[425909361,1782033102000,-622.33,0.0003041,2]
[425909355,1782033102000,-1053.37,0.0003041,2]
[425909359,1782033102000,-500.0,0.0003041,2]
[425909358,1782033102000,-321.0434454,0.0003041,2]
[425909333,1782033102000,-500.0,0.0003041,2]
[425909347,1782033102000,-519.31,0.0003041,2]
[425909331,1782033102000,-676.98,0.0003041,2]
[425909314,1782033102000,-421.72926736,0.0003041,2]
[425909327,1782033102000,-507.61,0.0003041,2]
[425909362,1782033102000,-500.0,0.0003041,2]
[425909310,1782033102000,-500.0,0.0003041,2]
[425909311,1782033102000,-500.0,0.0003041,2]
[425909308,1782033102000,-500.0,0.0003041,2]
[425909306,1782033102000,-1516.79,0.0003041,2]
[425909302,1782033102000,-530.73,0.0003041,2]
[425909307,1782033102000,-500.0,0.0003041,2]
[425909305,1782033102000,-500.0,0.0003041,2]
[425909304,1782033102000,-667.5,0.0003041,2]
[425909303,1782033102000,-500.0,0.0003041,2]
[425909309,1782033102000,-859.42,0.0003041,2]
[425909313,1782033102000,-500.0,0.0003041,2]
[425909323,1782033102000,-718.34,0.0003041,2]
[425909329,1782033102000,-500.0,0.0003041,2]
[425909316,1782033102000,-1229.86,0.0003041,2]
[425909315,1782033102000,-500.0,0.0003041,2]
[425909322,1782033102000,-500.0,0.0003041,2]
[425909320,1782033102000,-436.25266735,0.0003041,2]
[425909319,1782033102000,-40687.380737,0.0003041,2]
[425909317,1782033102000,-500.0,0.0003041,2]
[425909318,1782033102000,-803.37,0.0003041,2]
[425909321,1782033102000,-500.0,0.0003041,2]
[425909325,1782033102000,-616.78032856,0.0003041,2]
[425909324,1782033102000,-500.0,0.0003041,2]
[425909335,1782033102000,-500.0,0.0003041,2]
[425909336,1782033102000,-1114.23,0.0003041,2]
[425909328,1782033102000,-512.8,0.0003041,2]
[425909326,1782033102000,-500.0,0.0003041,2]
[425909312,1782033102000,-500.0,0.0003041,2]
[425909357,1782033102000,-500.0,0.0003041,2]
[425909368,1782033102000,-762.22,0.0003041,2]
[425909365,1782033102000,-500.0,0.0003041,2]
[425909397,1782033102000,-500.0,0.0003041,2]
[425909396,1782033102000,-500.0,0.0003041,2]
[425909401,1782033102000,-920.55,0.0003041,2]
[425909411,1782033102000,-500.0,0.0003041,2]
[425909402,1782033102000,-278.65271173,0.0003041,2]
[425909400,1782033102000,-500.0,0.0003041,2]
[425909405,1782033102000,-4215.0,0.0003041,2]
[425909406,1782033102000,-2160.34,0.0003041,2]
[425909404,1782033102000,-500.0,0.0003041,2]
[425909403,1782033102000,-500.0,0.0003041,2]
[425909408,1782033102000,-500.0,0.0003041,2]
[425909409,1782033102000,-571.56049733,0.0003041,2]
[425909407,1782033102000,-500.0,0.0003041,2]
[425909410,1782033102000,-606.32,0.0003041,2]
[425909412,1782033102000,-1115.01,0.0003041,2]
[425909415,1782033102000,-509.56,0.0003041,2]
[425909417,1782033102000,-1301.74,0.0003041,2]
[425909416,1782033102000,-537.11,0.0003041,2]
[425909418,1782033102000,-1548.3,0.0003041,2]
[425909420,1782033102000,-567.94,0.0003041,2]
[425909421,1782033102000,-500.0,0.0003041,2]
[425909419,1782033102000,-662.83,0.0003041,2]
[425909414,1782033102000,-831.38,0.0003041,2]
[425909413,1782033102000,-596.87,0.0003041,2]
[425909422,1782033102000,-1666.17,0.0003041,2]
[425909423,1782033102000,-516.52,0.0003041,2]
[425909363,1782033102000,-500.0,0.0003041,2]
[425909395,1782033102000,-1496.3,0.0003041,2]
[425909398,1782033102000,-500.0,0.0003041,2]
[425909424,1782033102000,-500.0,0.0003041,2]
[425909392,1782033102000,-512.14,0.0003041,2]
[425909389,1782033102000,-612.55708023,0.0003041,2]
[425909373,1782033102000,-966.1,0.0003041,2]
[425909369,1782033102000,-704.57,0.0003041,2]
[425909371,1782033102000,-500.0,0.0003041,2]
[425909370,1782033102000,-1043.69,0.0003041,2]
[425909364,1782033102000,-565.61,0.0003041,2]
[425909366,1782033102000,-1419.48,0.0003041,2]
[425909374,1782033102000,-500.0,0.0003041,2]
[425909372,1782033102000,-714.11,0.0003041,2]
[425909376,1782033102000,-4516.02,0.0003041,2]
[425909386,1782033102000,-1066.54,0.0003041,2]
[425909387,1782033102000,-500.0,0.0003041,2]
[425909375,1782033102000,-500.0,0.0003041,2]
[425909377,1782033102000,-1096.97,0.0003041,2]
[425909367,1782033102000,-500.0,0.0003041,2]
[425909380,1782033102000,-513.5,0.0003041,2]
[425909394,1782033102000,-2735.23,0.0003041,2]
[425909399,1782033102000,-744.26,0.0003041,2]
[425909393,1782033102000,-4073.97,0.0003041,2]
[425909391,1782033102000,-1401.64,0.0003041,2]
[425909378,1782033102000,-1051.17,0.0003041,2]
[425909388,1782033102000,-743.54,0.0003041,2]
[425909390,1782033102000,-966.14,0.0003041,2]
[425909385,1782033102000,-383.9948253,0.0003041,2]
[425909383,1782033102000,-500.0,0.0003041,2]
[425909382,1782033102000,-500.0,0.0003041,2]
[425909379,1782033102000,-500.0,0.0003041,2]
[425909381,1782033102000,-291.36611426,0.0003041,2]
[425909384,1782033102000,-500.0,0.0003041,2]
[425909469,1782033103000,-500.0,0.0003041,2]
[425909483,1782033103000,-712.88,0.0003041,2]
[425909468,1782033103000,-500.0,0.0003041,2]
[425909465,1782033103000,-500.0,0.0003041,2]
[425909457,1782033103000,-566.65,0.0003041,2]
[425909466,1782033103000,-500.0,0.0003041,2]
[425909461,1782033103000,-3977.44,0.0003041,2]
[425909462,1782033103000,-500.0,0.0003041,2]
[425909458,1782033103000,-500.0,0.0003041,2]
[425909459,1782033103000,-531.84,0.0003041,2]
[425909460,1782033103000,-1758.48,0.0003041,2]
[425909467,1782033103000,-500.0,0.0003041,2]
[425909472,1782033103000,-500.0,0.0003041,2]
[425909463,1782033103000,-650.62,0.0003041,2]
[425909470,1782033103000,-500.0,0.0003041,2]
[425909481,1782033103000,-2000.0,0.0003041,4]
[425909471,1782033103000,-2819.93,0.0003041,2]
[425909473,1782033103000,-539.64,0.0003041,2]
[425909475,1782033103000,-500.0,0.0003041,2]
[425909479,1782033103000,-500.0,0.0003041,2]
[425909480,1782033103000,-629.92,0.0003041,2]
[425909476,1782033103000,-500.0,0.0003041,2]
[425909478,1782033103000,-651.67,0.0003041,2]
[425909474,1782033103000,-500.0,0.0003041,2]
[425909477,1782033103000,-500.0,0.0003041,2]
[425909452,1782033103000,-500.0,0.0003041,2]
[425909464,1782033103000,-500.0,0.0003041,2]
[425909456,1782033103000,-853.34,0.0003041,2]
[425909438,1782033103000,-836.7,0.0003041,2]
[425909448,1782033103000,-500.0,0.0003041,2]
[425909425,1782033103000,-969.71,0.0003041,2]
[425909427,1782033103000,-717.52,0.0003041,2]
[425909428,1782033103000,-586.71,0.0003041,2]
[425909426,1782033103000,-188.87540947,0.0003041,2]
[425909430,1782033103000,-595.47,0.0003041,2]
[425909429,1782033103000,-1068.12,0.0003041,2]
[425909432,1782033103000,-1493.19,0.0003041,2]
[425909433,1782033103000,-1012.15,0.0003041,2]
[425909431,1782033103000,-500.0,0.0003041,2]
[425909434,1782033103000,-964.45,0.0003041,2]
[425909435,1782033103000,-500.0,0.0003041,2]
[425909441,1782033103000,-772.6,0.0003041,2]
[425909444,1782033103000,-911.52,0.0003041,2]
[425909436,1782033103000,-500.0,0.0003041,2]
[425909437,1782033103000,-500.0,0.0003041,2]
[425909439,1782033103000,-1073.5,0.0003041,2]
[425909440,1782033103000,-500.0,0.0003041,2]
[425909442,1782033103000,-503.69,0.0003041,2]
[425909443,1782033103000,-500.0,0.0003041,2]
[425909445,1782033103000,-500.0,0.0003041,2]
[425909447,1782033103000,-342.99517969,0.0003041,2]
[425909446,1782033103000,-500.0,0.0003041,2]
[425909450,1782033103000,-1050.19,0.0003041,2]
[425909451,1782033103000,-500.0,0.0003041,2]
[425909453,1782033103000,-500.0,0.0003041,2]
[425909449,1782033103000,-3456.59,0.0003041,2]
[425909454,1782033103000,-1121.32,0.0003041,2]
[425909455,1782033103000,-1000.0,0.0003041,2]
[425909482,1782033103000,-500.0,0.0003041,2]
[425909505,1782033103000,-161.0,0.00030411,120]
[425909487,1782033103000,-500.0,0.0003041,2]
[425909515,1782033103000,-25000.0,0.000305,2]
[425909521,1782033103000,-2110.0,0.00030637,2]
[425909532,1782033103000,-500.0,0.00030684,2]
[425909531,1782033103000,-500.0,0.00030684,2]
[425909520,1782033103000,-150.0,0.00030616,2]
[425909522,1782033103000,-2331.0,0.00030676,3]
[425909526,1782033103000,-500.0,0.00030684,2]
[425909524,1782033103000,-500.0,0.00030684,2]
[425909530,1782033103000,-793.21,0.00030684,2]
[425909528,1782033103000,-634.94,0.00030684,2]
[425909529,1782033103000,-500.0,0.00030684,2]
[425909527,1782033103000,-1203.65,0.00030684,2]
[425909523,1782033103000,-500.0,0.00030684,2]
[425909525,1782033103000,-534.17,0.00030684,2]
[425909535,1782033103000,-578.39,0.00030684,2]
[425909533,1782033103000,-500.0,0.00030684,2]
[425909540,1782033103000,-500.0,0.00030684,2]
[425909536,1782033103000,-500.0,0.00030684,2]
[425909537,1782033103000,-500.0,0.00030684,2]
[425909534,1782033103000,-780.63,0.00030684,2]
[425909539,1782033103000,-500.0,0.00030684,2]
[425909538,1782033103000,-500.0,0.00030684,2]
[425909544,1782033103000,-500.0,0.00030684,2]
[425909541,1782033103000,-762.48,0.00030684,2]
[425909542,1782033103000,-500.0,0.00030684,2]
[425909543,1782033103000,-580.07,0.00030684,2]
[425909493,1782033103000,-500.0,0.0003041,2]
[425909518,1782033103000,-222.0,0.00030547,120]
[425909513,1782033103000,-3373.51,0.000305,2]
[425909517,1782033103000,-150.0,0.00030547,120]